fUST/lending_fUST_20240615
["ID","MTS","AMOUNT","RATE_DAILY","PERIOD"]
[329495001,1718393463990,-528.16263812,0.00017534,2]
[329495002,1718393464021,-467.89,0.00017534,2]
[329495003,1718393464033,-500.0,0.00017534,2]
[329495004,1718393464057,-706.3,0.00017534,2]
[329495005,1718393464101,-500.0,0.00017534,2]
[329495006,1718393464113,-587.64,0.00017534,2]
[329495007,1718393464132,-500.0,0.00017534,2]
[329495008,1718393464145,-500.0,0.00017534,2]
[329495009,1718393464165,-500.0,0.00017534,2]
[329495010,1718393464199,-500.0,0.00017534,2]
[329495011,1718393464218,-500.0,0.00017534,2]
[329495012,1718393464245,-500.0,0.00017534,2]
[329495013,1718393464256,-767.81,0.00017534,2]
[329495014,1718393464282,-500.0,0.00017534,2]
[329495015,1718393464338,-500.0,0.00017534,2]
[329495016,1718393464353,-500.0,0.00017534,2]
[329495017,1718393464370,-500.0,0.00017534,2]
[329495018,1718393464392,-500.0,0.00017534,2]
[329495019,1718393464404,-578.85,0.00017534,2]
[329495020,1718393464456,-500.0,0.00017534,4]
[329495021,1718393464474,-500.0,0.00017534,2]
[329495022,1718393464504,-508.43687794,0.00017534,2]
[329495023,1718393464516,-500.0,0.00017534,2]
[329495024,1718393464536,-749.47,0.00017534,2]
[329495025,1718393464565,-500.0,0.00017534,2]
[329495026,1718393464576,-500.0,0.00017534,2]
[329495027,1718393464588,-500.0,0.00017534,2]
[329495028,1718393464610,-2050.92,0.00017534,2]
[329495029,1718393464627,-833.68,0.00017534,2]
[329495030,1718393464647,-935.59,0.00017534,2]
[329495031,1718393464658,-665.88,0.00017534,2]
[329495032,1718393464671,-2110.82,0.00017534,2]
[329495033,1718393464682,-500.0,0.00017534,2]
[329495034,1718393464706,-500.0,0.00017534,2]
[329495035,1718393464717,-2889.51,0.00017534,2]
[329495036,1718393464729,-500.0,0.00017534,2]
[329495037,1718393464742,-500.0,0.00017534,2]
[329495038,1718393464759,-789.88,0.00017534,2]
[329495039,1718393464775,-500.0,0.00017534,2]
[329495040,1718393464788,-509.27474299,0.00017534,2]
[329495041,1718393464800,-4089.43,0.00017534,2]
[329495042,1718393464813,-8035.26,0.00017534,2]
[329495043,1718393464827,-500.0,0.00017534,2]
[329495044,1718393464847,-500.0,0.00017534,2]
[329495045,1718393464865,-500.0,0.00017534,2]
[329495046,1718393464876,-500.0,0.00017534,2]
[329495047,1718393464900,-500.0,0.00017534,2]
[329495048,1718393464913,-500.0,0.00017534,2]
[329495049,1718393464928,-769.65,0.00017534,2]
[329495050,1718393464961,-1159.08,0.00017534,2]
[329495051,1718393465012,-500.0,0.00017534,2]
[329495052,1718393465048,-500.0,0.00017534,2]
[329495053,1718393465061,-594.28,0.00017534,2]
[329495054,1718393465078,-6095.04,0.00017534,2]
[329495055,1718393465089,-376.21719704,0.00017534,2]
[329495056,1718393465107,-1727.98,0.00017534,2]
[329495057,1718393465125,-10366.53,0.00017534,2]
[329495058,1718393465149,-1341.85,0.00017534,2]
[329495059,1718393465162,-500.0,0.00017534,2]
[329495060,1718393465216,-257.525415,0.00017549,2]
[329495061,1718393465234,-296.118981,0.00017549,2]
[329495062,1718393465246,-169.455015,0.00017549,2]
[329495063,1718393465259,-171.437305,0.00017549,2]
[329495064,1718393465273,-186.367076,0.00017549,2]
[329495065,1718393465288,-295.5,0.00017566,2]
[329495066,1718393465299,-585.199123,0.00017616,2]
[329495067,1718393465322,-153.941167,0.00017616,2]
[329495068,1718393465339,-306.0,0.00017616,2]
[329495069,1718393465354,-715.4377616,0.00017616,2]
[329495070,1718393465364,-205.438059,0.00017616,2]
[329495071,1718393465377,-205.438059,0.00017616,2]
[329495072,1718393465397,-306.0,0.00017616,2]
[329495073,1718393465408,-205.438059,0.00017616,2]
[329495074,1718393465426,-205.1741907,0.00017616,2]
[329495075,1718393465456,-295.5,0.00017712,2]
[329495076,1718393465467,-257.525415,0.00017768,2]
[329495077,1718393465481,-296.118981,0.00017768,2]
[329495078,1718393465510,-171.437305,0.00017768,2]
[329495079,1718393465530,-153.0,0.00017799,2]
[329495080,1718393465574,-306.0,0.00017799,2]
[329495081,1718393465593,-306.0,0.00017799,2]
[329495082,1718393465611,-153.0,0.00017799,2]
[329495083,1718393465629,-153.0,0.00017799,2]
[329495084,1718393465648,-153.0,0.00017799,2]
[329495085,1718393465664,-153.0,0.00017799,2]
[329495086,1718393465701,-153.0,0.00017799,2]
[329495087,1718393465716,-153.0,0.00017799,2]
[329495088,1718393465726,-153.0,0.00017799,2]
[329495089,1718393465738,-500.0,0.00017806,2]
[329495090,1718393465751,-500.0,0.00017807,2]
[329495091,1718393465770,-586.51,0.00017807,2]
[329495092,1718393465813,-500.0,0.00017808,2]
[329495093,1718393465827,-500.0,0.00017808,2]
[329495094,1718393465848,-500.0,0.00017808,2]
[329495095,1718393465888,-500.0,0.00017808,2]
[329495096,1718393465916,-500.0,0.00017808,2]
[329495097,1718393465944,-500.0,0.00017808,2]
[329495098,1718393465959,-500.0,0.00017808,2]
[329495099,1718393465997,-706.3,0.00017808,2]
[329495100,1718393466025,-500.0,0.00017808,2]
[329495101,1718393466051,-500.0,0.00017808,2]
[329495102,1718393466064,-500.0,0.00017808,2]
[329495103,1718393466099,-500.0,0.00017808,2]
[329495104,1718393466109,-500.0,0.00017808,2]
[329495105,1718393466121,-500.0,0.00017808,2]
[329495106,1718393466133,-500.0,0.00017808,2]
[329495107,1718393466146,-767.81,0.00017808,2]
[329495108,1718393466158,-500.0,0.00017808,2]
[329495109,1718393466182,-500.0,0.00017808,2]
[329495110,1718393466193,-500.0,0.00017808,2]
[329495111,1718393466213,-500.0,0.00017808,2]
[329495112,1718393466246,-500.0,0.00017808,4]
[329495113,1718393466259,-500.0,0.00017808,2]
[329495114,1718393466280,-500.0,0.00017808,2]
[329495115,1718393466298,-749.47,0.00017808,2]
[329495116,1718393466327,-624.15009459,0.00017808,2]
[329495117,1718393466354,-500.0,0.00017808,2]
[329495118,1718393466380,-2050.92,0.00017808,2]
[329495119,1718393466402,-833.68,0.00017808,2]
[329495120,1718393466417,-935.59,0.00017808,2]
[329495121,1718393466450,-665.88,0.00017808,2]
[329495122,1718393466470,-2110.82,0.00017808,2]
[329495123,1718393466484,-500.0,0.00017808,2]
[329495124,1718393466496,-500.0,0.00017808,2]
[329495125,1718393466509,-2889.51,0.00017808,2]
[329495126,1718393466521,-500.0,0.00017808,2]
[329495127,1718393466535,-500.0,0.00017808,2]
[329495128,1718393466553,-789.88,0.00017808,2]
[329495129,1718393466565,-500.0,0.00017808,2]
[329495130,1718393466579,-4089.43,0.00017808,2]
[329495131,1718393466600,-8035.26,0.00017808,2]
[329495132,1718393466612,-500.0,0.00017808,2]
[329495133,1718393466632,-500.0,0.00017808,2]
[329495134,1718393466644,-500.0,0.00017808,2]
[329495135,1718393466659,-500.0,0.00017808,2]
[329495136,1718393466697,-568.58636818,0.00017808,2]
[329495137,1718393466765,-500.0,0.00017808,2]
[329495138,1718393466787,-769.65,0.00017808,2]
[329495139,1718393466801,-1159.08,0.00017808,2]
[329495140,1718393466815,-500.0,0.00017808,2]
[329495141,1718393466836,-500.0,0.00017808,2]
[329495142,1718393466851,-594.28,0.00017808,2]
[329495143,1718393466864,-6095.04,0.00017808,2]
[329495144,1718393466876,-1727.98,0.00017808,2]
[329495145,1718393466891,-10366.53,0.00017808,2]
[329495146,1718393466919,-1341.85,0.00017808,2]
[329495147,1718393466944,-500.0,0.00017808,2]
[329495148,1718393466959,-186.367076,0.00017841,2]
[329495149,1718393466970,-1750.0,0.00017856,2]
[329495150,1718393466992,-499.0,0.00017856,2]
[329495151,1718393467004,-295.5,0.00017858,2]
[329495152,1718393467014,-257.525415,0.00017987,2]
[329495153,1718393467026,-296.118981,0.00017987,2]
[329495154,1718393467052,-171.437305,0.00017987,2]
[329495155,1718393467156,-500.0,0.00017999,2]
[329495156,1718393467170,-586.51,0.00017999,2]
[329495157,1718393467182,-31900.31698394,0.00018,2]
[329495158,1718393467193,-476.69963654,0.00018,2]
[329495159,1718393467204,-876.82850055,0.00018,2]
[329495160,1718393467222,-1355.61945113,0.00018,2]
[329495161,1718393467239,-2765.44251206,0.00018,2]
[329495162,1718393467252,-310.00465008,0.00018,2]
[329495163,1718393467268,-295.5,0.00018004,2]
[329495164,1718393467282,-560.18359382,0.0001808,2]
[329495165,1718393467295,-586.51,0.00018081,2]
[329495166,1718393467309,-420.0,0.00018081,2]
[329495167,1718393467322,-500.0,0.00018082,2]
[329495168,1718393467337,-500.0,0.00018082,2]
[329495169,1718393467353,-500.0,0.00018082,2]
[329495170,1718393467364,-500.0,0.00018082,2]
[329495171,1718393467377,-500.0,0.00018082,2]
[329495172,1718393467409,-500.0,0.00018082,2]
[329495173,1718393467449,-500.0,0.00018082,2]
[329495174,1718393467476,-706.3,0.00018082,2]
[329495175,1718393467503,-500.0,0.00018082,2]
[329495176,1718393467519,-3200.0,0.00018082,2]
[329495177,1718393467536,-3200.0,0.00018082,2]
[329495178,1718393467548,-3200.0,0.00018082,2]
[329495179,1718393467560,-2327.80927491,0.00018082,2]
[329495180,1718393467578,-500.0,0.00018082,2]
[329495181,1718393467590,-500.0,0.00018082,2]
[329495182,1718393467608,-500.0,0.00018082,2]
[329495183,1718393467624,-500.0,0.00018082,2]
[329495184,1718393467645,-577.60536885,0.00018082,2]
[329495185,1718393467657,-500.0,0.00018082,2]
[329495186,1718393467668,-767.81,0.00018082,2]
[329495187,1718393467679,-500.0,0.00018082,2]
[329495188,1718393467691,-500.0,0.00018082,2]
[329495189,1718393467727,-280.54417749,0.00018082,2]
[329495190,1718393467739,-500.0,0.00018082,2]
[329495191,1718393467780,-500.0,0.00018082,4]
[329495192,1718393467799,-500.0,0.00018082,2]
[329495193,1718393467818,-500.0,0.00018082,2]
[329495194,1718393467830,-749.47,0.00018082,2]
[329495195,1718393467851,-500.0,0.00018082,2]
[329495196,1718393467873,-2050.92,0.00018082,2]
[329495197,1718393467885,-833.68,0.00018082,2]
[329495198,1718393467899,-935.59,0.00018082,2]
[329495199,1718393467915,-665.88,0.00018082,2]
[329495200,1718393467940,-2110.82,0.00018082,2]
[329495201,1718393467971,-400.82160122,0.00018082,2]
[329495202,1718393467983,-2889.51,0.00018082,2]
[329495203,1718393468010,-500.0,0.00018082,2]
[329495204,1718393468039,-500.0,0.00018082,2]
[329495205,1718393468053,-789.88,0.00018082,2]
[329495206,1718393468080,-500.0,0.00018082,2]
[329495207,1718393468095,-4089.43,0.00018082,2]
[329495208,1718393468112,-8035.26,0.00018082,2]
[329495209,1718393468145,-500.0,0.00018082,2]
[329495210,1718393468172,-500.0,0.00018082,2]
[329495211,1718393468193,-500.0,0.00018082,2]
[329495212,1718393468208,-500.0,0.00018082,2]
[329495213,1718393468233,-500.0,0.00018082,2]
[329495214,1718393468246,-769.65,0.00018082,2]
[329495215,1718393468267,-1159.08,0.00018082,2]
[329495216,1718393468279,-500.0,0.00018082,2]
[329495217,1718393468298,-500.0,0.00018082,2]
[329495218,1718393468313,-594.28,0.00018082,2]
[329495219,1718393468332,-6095.04,0.00018082,2]
[329495220,1718393468363,-1727.98,0.00018082,2]
[329495221,1718393468398,-10366.53,0.00018082,2]
[329495222,1718393468411,-1341.85,0.00018082,2]
[329495223,1718393468421,-500.0,0.00018082,2]
[329495224,1718393468433,-600.0,0.00018125,2]
[329495225,1718393468448,-186.367076,0.00018134,2]
[329495226,1718393468469,-295.5,0.0001815,2]
[329495227,1718393468480,-257.525415,0.00018207,2]
[329495228,1718393468490,-296.118981,0.00018207,2]
[329495229,1718393468508,-171.437305,0.00018207,2]
[329495230,1718393468521,-586.51,0.00018254,2]
[329495231,1718393468531,-41771.20530346,0.00018255,2]
[329495232,1718393468572,-295.5,0.00018296,2]
[329495233,1718393468584,-151.0,0.00018296,2]
[329495234,1718393468598,-600.0,0.00018314,2]
[329495235,1718393468637,-687.55415781,0.00018354,2]
[329495236,1718393468664,-156.97954424,0.00018354,2]
[329495237,1718393468675,-216.14213589,0.00018355,2]
[329495238,1718393468688,-586.51,0.00018355,2]
[329495239,1718393468717,-500.0,0.00018356,2]
[329495240,1718393468742,-500.0,0.00018356,2]
[329495241,1718393468773,-500.0,0.00018356,2]
[329495242,1718393468789,-500.0,0.00018356,2]
[329495243,1718393468803,-500.0,0.00018356,2]
[329495244,1718393468818,-500.0,0.00018356,2]
[329495245,1718393468832,-500.0,0.00018356,2]
[329495246,1718393468845,-706.3,0.00018356,2]
[329495247,1718393468859,-500.0,0.00018356,2]
[329495248,1718393468873,-500.0,0.00018356,2]
[329495249,1718393468884,-500.0,0.00018356,2]
[329495250,1718393468901,-500.0,0.00018356,2]
[329495251,1718393468914,-500.0,0.00018356,2]
[329495252,1718393468927,-500.0,0.00018356,2]
[329495253,1718393468948,-767.81,0.00018356,2]
[329495254,1718393468963,-500.0,0.00018356,2]
[329495255,1718393468977,-500.0,0.00018356,2]
[329495256,1718393468991,-500.0,0.00018356,4]
[329495257,1718393469004,-500.0,0.00018356,2]
[329495258,1718393469021,-500.0,0.00018356,2]
[329495259,1718393469039,-749.47,0.00018356,2]
[329495260,1718393469068,-500.0,0.00018356,2]
[329495261,1718393469097,-2050.92,0.00018356,2]
[329495262,1718393469131,-833.68,0.00018356,2]
[329495263,1718393469169,-935.59,0.00018356,2]
[329495264,1718393469182,-665.88,0.00018356,2]
[329495265,1718393469194,-2110.82,0.00018356,2]
[329495266,1718393469223,-2889.51,0.00018356,2]
[329495267,1718393469245,-500.0,0.00018356,2]
[329495268,1718393469289,-500.0,0.00018356,2]
[329495269,1718393469304,-789.88,0.00018356,2]
[329495270,1718393469316,-500.0,0.00018356,2]
[329495271,1718393469358,-4089.43,0.00018356,2]
[329495272,1718393469373,-8035.26,0.00018356,2]
[329495273,1718393469406,-500.0,0.00018356,2]
[329495274,1718393469423,-500.0,0.00018356,2]
[329495275,1718393469436,-500.0,0.00018356,2]
[329495276,1718393469453,-500.0,0.00018356,2]
[329495277,1718393469472,-500.0,0.00018356,2]
[329495278,1718393469517,-769.65,0.00018356,2]
[329495279,1718393469545,-1159.08,0.00018356,2]
[329495280,1718393469582,-500.0,0.00018356,2]
[329495281,1718393469593,-500.0,0.00018356,2]
[329495282,1718393469608,-594.28,0.00018356,2]
[329495283,1718393469637,-6095.04,0.00018356,2]
[329495284,1718393469655,-1727.98,0.00018356,2]
[329495285,1718393469681,-10366.53,0.00018356,2]
[329495286,1718393469714,-1341.85,0.00018356,2]
[329495287,1718393469736,-160.0,0.00018417,2]
[329495288,1718393469748,-186.891571,0.00018426,2]
[329495289,1718393469759,-162.518286,0.00018426,2]
[329495290,1718393469775,-332.617894,0.00018426,2]
[329495291,1718393469786,-398.834623,0.00018426,2]
[329495292,1718393469825,-1149.937294,0.00018426,2]
[329495293,1718393469845,-1314.195627,0.00018426,2]
[329495294,1718393469876,-257.525415,0.00018426,2]
[329495295,1718393469895,-296.118981,0.00018426,2]
[329495296,1718393469907,-171.437305,0.00018426,2]
[329495297,1718393469936,-186.367076,0.00018426,2]
[329495298,1718393469948,-295.5,0.00018442,2]
[329495299,1718393469967,-151.0,0.00018442,2]
[329495300,1718393469989,-155.0,0.0001846,2]
[329495301,1718393470002,-620.11622138,0.00018489,2]
[329495302,1718393470013,-586.51,0.00018498,2]
[329495303,1718393470039,-6751.86493708,0.00018499,2]
[329495304,1718393470079,-600.0,0.00018502,2]
[329495305,1718393470096,-295.5,0.00018588,2]
[329495306,1718393470113,-151.0,0.00018588,2]
[329495307,1718393470126,-153.0,0.00018621,2]
[329495308,1718393470157,-153.0,0.00018621,2]
[329495309,1718393470180,-153.0,0.00018621,2]
[329495310,1718393470195,-153.0,0.00018621,2]
[329495311,1718393470232,-586.51,0.00018629,2]
[329495312,1718393470252,-500.0,0.0001863,2]
[329495313,1718393470269,-500.0,0.0001863,2]
[329495314,1718393470282,-500.0,0.0001863,2]
[329495315,1718393470300,-500.0,0.0001863,2]
[329495316,1718393470312,-500.0,0.0001863,2]
[329495317,1718393470329,-500.0,0.0001863,2]
[329495318,1718393470343,-500.0,0.0001863,2]
[329495319,1718393470370,-706.3,0.0001863,2]
[329495320,1718393470393,-500.0,0.0001863,2]
[329495321,1718393470425,-500.0,0.0001863,2]
[329495322,1718393470449,-500.0,0.0001863,2]
[329495323,1718393470467,-500.0,0.0001863,2]
[329495324,1718393470501,-500.0,0.0001863,2]
[329495325,1718393470532,-500.0,0.0001863,2]
[329495326,1718393470546,-767.81,0.0001863,2]
[329495327,1718393470592,-500.0,0.0001863,2]
[329495328,1718393470608,-500.0,0.0001863,4]
[329495329,1718393470659,-500.0,0.0001863,2]
[329495330,1718393470677,-500.0,0.0001863,2]
[329495331,1718393470689,-749.47,0.0001863,2]
[329495332,1718393470740,-500.0,0.0001863,2]
[329495333,1718393470796,-2050.92,0.0001863,2]
[329495334,1718393470828,-833.68,0.0001863,2]
[329495335,1718393470846,-935.59,0.0001863,2]
[329495336,1718393470872,-665.88,0.0001863,2]
[329495337,1718393470897,-2110.82,0.0001863,2]
[329495338,1718393470921,-2889.51,0.0001863,2]
[329495339,1718393470932,-500.0,0.0001863,2]
[329495340,1718393470945,-500.0,0.0001863,2]
[329495341,1718393470958,-789.88,0.0001863,2]
[329495342,1718393470969,-500.0,0.0001863,2]
[329495343,1718393470994,-4089.43,0.0001863,2]
[329495344,1718393471006,-8035.26,0.0001863,2]
[329495345,1718393471018,-483.14144495,0.0001863,2]
[329495346,1718393471037,-532.53642123,0.0001863,2]
[329495347,1718393471059,-500.0,0.0001863,2]
[329495348,1718393471070,-500.0,0.0001863,2]
[329495349,1718393471091,-250.38,0.0001863,2]
[329495350,1718393471111,-769.65,0.0001863,2]
[329495351,1718393471122,-1159.08,0.0001863,2]
[329495352,1718393471132,-47.77190532,0.0001863,2]
[329495353,1718393471398,-301.77041806,0.00016437,2]
[329495354,1718393471417,-1588.91,0.00016986,2]
[329495355,1718393471448,-1588.91,0.0001726,2]
[329495356,1718393471465,-1588.91,0.00017534,2]
[329495357,1718393471486,-452.22809468,0.0001863,2]
[329495358,1718393471506,-500.0,0.0001863,2]
[329495359,1718393471518,-594.28,0.0001863,2]
[329495360,1718393471550,-3445.64190538,0.0001863,2]
[329495361,1718393471566,-2002.74062318,0.0001863,2]
[329495362,1718393493670,151.00302006,0.00019513,30]
[329495363,1718393493722,151.00302006,0.00019122,120]
[329495368,1718393717339,151.00604024,0.00019342,30]
[329495369,1718393717427,64.49241109,0.00018955,120]
[329495370,1718393717522,86.51362915,0.00018955,120]
[329495371,1718393846204,398800.5512864,0.00025,60]
[329495374,1718393847026,913.48637085,0.0002,120]
[329495375,1718393847083,9473.01601267,0.0002,120]
[329495376,1718394288679,151.00302006,0.00018817,30]
[329495377,1718394288751,151.00302006,0.0001844,120]
[329495378,1718394520705,-653.40494634,0.00015,2]
[329495379,1718394520781,-653.40494634,0.00015,2]
[329495380,1718394545656,-385.52803836,0.00015,2]
[329495439,1718394635496,-347.2585269,0.00015133,2]
[329495440,1718394635506,-419.9222119,0.0001524,2]
[329495441,1718394635516,-596.0422309,0.00015258,2]
[329495442,1718394635527,-164.651568,0.00016164,2]
[329495443,1718394635539,-722.09271806,0.00016338,2]
[329495444,1718394635571,-2037.68801653,0.00016434,4]
[329495484,1718394648419,-1151.04962128,0.00016434,4]
[329495485,1718394648444,-300.0,0.00016435,2]
[329495486,1718394648473,-187.22194756,0.00016436,2]
[329495487,1718394648485,-1500.63244989,0.00016436,2]
[329495488,1718394648505,-1006.21785124,0.00016436,2]
[329495490,1718394648547,-5016.2433134,0.00016436,2]
[329495492,1718394648570,-4513.92711934,0.00016436,2]
[329495493,1718394648581,-713.61412939,0.00016436,2]
[329495494,1718394648616,-146.23665487,0.00016436,2]
[329495495,1718394648629,-194.99346474,0.00016436,2]
[329495496,1718394648649,-190.36577265,0.00016436,2]
[329495497,1718394648660,-534.87830761,0.00016436,2]
[329495498,1718394648670,-515.35107108,0.00016436,2]
[329495499,1718394648683,-759.78913764,0.00016436,2]
[329495500,1718394648695,-282.32326129,0.00016436,2]
[329495501,1718394648706,-613.53056814,0.00016436,2]
[329495502,1718394648724,-526.09322986,0.00016436,2]
[329495503,1718394648752,-309.87604956,0.00016436,2]
[329495504,1718394648769,-803.55790574,0.00016437,2]
[329495505,1718394648783,-500.0,0.00016438,2]
[329495506,1718394648806,-500.0,0.00016438,2]
[329495507,1718394648817,-500.0,0.00016438,2]
[329495508,1718394648831,-500.0,0.00016438,2]
[329495509,1718394648842,-500.0,0.00016438,2]
[329495510,1718394648855,-500.0,0.00016438,2]
[329495511,1718394648866,-500.0,0.00016438,2]
[329495512,1718394648889,-500.0,0.00016438,2]
[329495513,1718394648901,-500.0,0.00016438,2]
[329495514,1718394648922,-500.0,0.00016438,2]
[329495515,1718394648963,-500.0,0.00016438,2]
[329495516,1718394648973,-500.0,0.00016438,2]
[329495517,1718394648986,-500.0,0.00016438,2]
[329495518,1718394648999,-500.0,0.00016438,2]
[329495519,1718394649010,-500.62738533,0.00016438,2]
[329495520,1718394649026,-500.0,0.00016438,2]
[329495521,1718394649041,-489.4618939,0.00016438,2]
[329495522,1718394649053,-500.0,0.00016438,2]
[329495523,1718394649064,-630.57047381,0.00016438,2]
[329495524,1718394649092,-500.0,0.00016438,2]
[329495525,1718394649108,-500.0,0.00016438,2]
[329495526,1718394649120,-500.0,0.00016438,2]
[329495527,1718394649132,-500.0,0.00016438,2]
[329495528,1718394649148,-500.0,0.00016438,2]
[329495529,1718394649160,-500.0,0.00016438,2]
[329495530,1718394649173,-501.38607319,0.00016438,2]
[329495531,1718394649196,-500.0,0.00016438,2]
[329495532,1718394649207,-500.53031532,0.00016438,2]
[329495533,1718394649243,-500.0,0.00016438,2]
[329495534,1718394649260,-500.0,0.00016438,2]
[329495535,1718394649271,-318.88559653,0.00016438,2]
[329495536,1718394649299,-500.0,0.00016438,2]
[329495537,1718394649315,-500.0,0.00016438,2]
[329495538,1718394649340,-500.0,0.00016438,2]
[329495539,1718394649368,-500.0,0.00016438,2]
[329495540,1718394649405,-500.0,0.00016438,2]
[329495541,1718394649417,-500.0,0.00016438,2]
[329495542,1718394649440,-500.0,0.00016438,2]
[329495543,1718394649458,-504.44333306,0.00016438,2]
[329495544,1718394649472,-500.0,0.00016438,2]
[329495545,1718394649504,-500.0,0.00016438,2]
[329495546,1718394649518,-504.19629295,0.00016438,2]
[329495547,1718394649532,-500.0,0.00016438,2]
[329495548,1718394649552,-500.0,0.00016438,2]
[329495549,1718394649569,-500.0,0.00016438,2]
[329495550,1718394649599,-500.0,0.00016438,2]
[329495551,1718394649610,-500.0,0.00016438,2]
[329495552,1718394649621,-500.0,0.00016438,2]
[329495553,1718394649633,-328.71331336,0.00016438,2]
[329495554,1718394649645,-500.0,0.00016438,2]
[329495555,1718394649692,-500.0,0.00016438,2]
[329495556,1718394649709,-500.0,0.00016438,2]
[329495557,1718394649724,-500.0,0.00016438,2]
[329495558,1718394649742,-500.0,0.00016438,2]
[329495559,1718394649771,-500.0,0.00016438,2]
[329495560,1718394649791,-500.0,0.00016438,2]
[329495562,1718394649832,-500.0,0.00016438,2]
[329495563,1718394649846,-500.0,0.00016438,2]
[329495565,1718394649896,-500.0,0.00016438,2]
[329495568,1718394649942,-501.90102211,0.00016438,2]
[329495572,1718394649973,-584.80523407,0.00016438,2]
[329495577,1718394650020,-500.0,0.00016438,2]
[329495580,1718394650051,-500.0,0.00016438,2]
[329495583,1718394650069,-500.0,0.00016438,2]
[329495586,1718394650081,-512.37213816,0.00016438,2]
[329495588,1718394650094,-500.0,0.00016438,2]
[329495590,1718394650122,-500.0,0.00016438,2]
[329495591,1718394650148,-500.0,0.00016438,2]
[329495592,1718394650159,-500.0,0.00016438,2]
[329495594,1718394650181,-500.0,0.00016438,2]
[329495596,1718394650194,-525.27,0.00016438,2]
[329495598,1718394650220,-500.0,0.00016438,2]
[329495600,1718394650244,-501.57820878,0.00016438,2]
[329495601,1718394650255,-500.0,0.00016438,2]
[329495603,1718394650286,-500.0,0.00016438,4]
[329495605,1718394650316,-500.0,0.00016438,2]
[329495606,1718394650335,-250.0,0.00016438,2]
[329495607,1718394650349,-500.0,0.00016438,2]
[329495608,1718394650366,-500.0,0.00016438,2]
[329495609,1718394650418,-500.0,0.00016438,2]
[329495611,1718394650438,-500.0,0.00016438,2]
[329495613,1718394650449,-500.0,0.00016438,2]
[329495615,1718394650468,-500.0,0.00016438,2]
[329495617,1718394650488,-500.0,0.00016438,2]
[329495619,1718394650499,-500.0,0.00016438,2]
[329495622,1718394650545,-500.0,0.00016438,2]
[329495623,1718394650576,-500.0,0.00016438,2]
[329495624,1718394650589,-500.0,0.00016438,2]
[329495625,1718394650601,-500.0,0.00016438,2]
[329495627,1718394650642,-500.0,0.00016438,2]
[329495630,1718394650682,-500.0,0.00016438,2]
[329495632,1718394650713,-500.0,0.00016438,2]
[329495633,1718394650733,-500.0,0.00016438,2]
[329495635,1718394650746,-500.0,0.00016438,2]
[329495636,1718394650758,-500.0,0.00016438,2]
[329495637,1718394650782,-500.0,0.00016438,2]
[329495638,1718394650798,-500.0,0.00016438,2]
[329495639,1718394650869,-500.0,0.00016438,2]
[329495640,1718394650879,-500.0,0.00016438,2]
[329495641,1718394650893,-500.0,0.00016438,2]
[329495642,1718394650908,-500.0,0.00016438,2]